Cogmind - Beta 11 X7 @@@ ROGUE MODE // 2021.09.03 @ 19:58:31 Player: aoemica Result: Self-destructed Performance ------------- Evolutions (1) 500 Regions Visited (2) 400 Robots Destroyed (6) 30 Value Destroyed (80) 80 Prototype IDs (0) 0 Alien Tech Used (0) 0 Bonus (200) 200 TOTAL SCORE: 1210 Bonus ------- Pacifist 200 Cogmind --------- Core Integrity 329/400 Matter 156/300 Energy 85/125 System Corruption 0% Temperature Cool (4) Movement Flying (31) Location -9/Materials Parts ------- > --- POWER (1) -------- Light Ion Engine > --- PROPULSION (4) --- Flight Unit Flight Unit Flight Unit Flight Unit > --- UTILITY (2) ------ (None) > --- WEAPON (2) ------- (None) > --- INVENTORY (5) ---- Ion Engine Flight Unit Grenade Launcher Peak State ------------ > --- POWER ------------ (None) > --- PROPULSION ------- Light Treads Light Treads Flight Unit Flight Unit > --- UTILITY ---------- (None) > --- WEAPON ----------- Light Assault Rifle Grenade Launcher > --- INVENTORY -------- Ion Engine Light Ion Engine Flight Unit Flight Unit [Rating: 6] Favorites ----------- Power Light Ion Engine Engine Light Ion Engine Propulsion Light Treads Treads Light Treads Flight Unit Flight Unit Utility None Weapon Light Assault Rifle Ballistic Gun Light Assault Rifle Launcher Grenade Launcher Build | -11 -10 -9 ------- Run | Scr Mat Mat Slots Evolved 2 | . . 2 Power . | . . . Propulsion 2 | . . 2 Utility . | . . . Weapon . | . . . Parts Attached 11 | 3 . 8 Power 1 | . . 1 Engine 1 | . . 1 Core . | . . . Reactor . | . . . Propulsion 6 | 2 . 4 Treads 2 | 2 . . Leg . | . . . Wheel . | . . . Hover . | . . . Flight 4 | . . 4 Utility . | . . . Device . | . . . Storage . | . . . Processor . | . . . Hackware . | . . . Protection . | . . . Artifact . | . . . Weapon 4 | 1 . 3 Energy Gun . | . . . Energy Cannon . | . . . Ballistic Gun 1 | 1 . . Ballistic Cannon . | . . . Launcher 3 | . . 3 Special Weapon . | . . . Impact Weapon . | . . . Slashing Weapon . | . . . Piercing Weapon . | . . . Special Melee Weapon . | . . . Unidentified Prototypes . | . . . Parts Lost 1 | . . 1 Power . | . . . Propulsion . | . . . Utility . | . . . Weapon 1 | . . 1 Highest Loss Streak 1 | . . 1 Average Slot Usage (%) 46 | . 42 48 Engine 2 | . . 3 Treads 17 | . 28 13 Flight 14 | . . 20 Ballistic Gun 11 | . 14 9 Naked Turns . | . . . Heaviest Build 4 | 1 1 4 Greatest Support 16 | 3 3 16 Greatest Overweight (x) . | . . . Average Overweight (x) . | . . . Largest Inventory Capacity 5 | 5 5 5 Average Capacity 5 | 5 5 5 Most Carried 5 | 4 2 5 Average Carried 2 | 1 1 3 Final Capacity 5 | 5 5 5 Final Carried 3 | 1 2 3 Class Distribution -------------------- 65% | Scavenger-Sprinter 34% | Mutant Dominant Class ---------------- Mutant | -10/Materials Scavenger-Sprinter | -9/Materials Resources | -11 -10 -9 ----------- Run | Scr Mat Mat Matter Collected 211 | 200 . 11 Remotely . | . . . Salvage Created 36 | . . 36 Parts 10 | . . 10 Haulers Intercepted . | . . . Recyclers Shooed . | . . . Parts Field Recycled . | . . . Retrieved Matter . | . . . Parts Self-Destructed . | . . . Prevented . | . . . Kills | -11 -10 -9 ------- Run | Scr Mat Mat Combat Hostiles Destroyed 6 | . . 6 AOE 6 | . . 6 Classes Destroyed 1 | . . 1 Swarmer 6 | . . 6 Best Kill Streak 5 | . . 5 Combat Bots Only 5 | . . 5 Max Kills in Single Turn 3 | . . 3 Gunslinging . | . . . Exploded 3 | . . 3 Melee . | . . . Uniques/NPCs Destroyed . | . . . Combat | -11 -10 -9 -------- Run | Scr Mat Mat Damage Taken 434 | . 155 279 Core 115 | . 44 71 Absorbed by Shields . | . . . Core Remaining (%) 91 | 100 82 . Volleys Fired 5 | . . 5 Largest 1 | . . 1 Hottest 30 | . . 30 Shots Fired 5 | . . 5 Gun . | . . . Cannon . | . . . Launcher 5 | . . 5 Special . | . . . Kinetic . | . . . Thermal . | . . . Explosive 5 | . . 5 Electromagnetic . | . . . Robot Hit Streak . | . . . Robot Miss Streak . | . . . Penetration Max . | . . . Secondary Targets . | . . . Shots Hit Robots . | . . . Core Hits 10 | . . 10 Critical Kills . | . . . Critical Parts Destroyed . | . . . Critical Strikes . | . . . Melee Attacks . | . . . Impact . | . . . Slashing . | . . . Piercing . | . . . Sneak Attacks . | . . . Combat Hostiles . | . . . Follow-up Attacks . | . . . Damage Inflicted 194 | . . 194 Guns . | . . . Cannons . | . . . Explosions 194 | . . 194 Melee . | . . . Ramming . | . . . Kinetic . | . . . Thermal . | . . . Explosive 194 | . . 194 Electromagnetic . | . . . Impact . | . . . Slashing . | . . . Piercing . | . . . Highest Corruption . | . . . Average Corruption . | . . . Corruption Purged . | . . . Overload Shots . | . . . Overflow Damage . | . . . Projectiles . | . . . Explosions . | . . . Melee . | . . . Knockbacks . | . . . Impact . | . . . Kinetic . | . . . Secondary . | . . . Self-Inflicted Damage 17 | . . 17 Shots 1 | . . 1 Rammed . | . . . Targets Rammed . | . . . Kicked . | . . . Crushed . | . . . Highest Temperature 7 | . . 7 Average Temperature 5 | . . 5 Received Heat Transfer 189 | . 87 102 Siege Activations . | . . . Robots Corrupted . | . . . Combat Hostiles . | . . . Parts Fried . | . . . Impact Corruptions . | . . . Robots Melted . | . . . Combat Hostiles . | . . . Parts Melted . | . . . Heat Transferred . | . . . Parts Sabotaged . | . . . Parts Stolen . | . . . Parts Stripped . | . . . Power Chain Reactions . | . . . Missiles Intercepted . | . . . Alert | -11 -10 -9 ------- Run | Scr Mat Mat Peak Influence 240 | . 60 240 Initial 25 | . . 25 Average 117 | . 17 170 Maximum Alert Level 1 | . . 1 Low Security (%) 56 | 100 100 32 Level 1 43 | . . 67 Level 2 . | . . . Level 3 . | . . . Level 4 . | . . . Level 5 . | . . . High Security . | . . . Max Security . | . . . Squads Dispatched 4 | . 2 2 Investigation 1 | . 1 . Extermination . | . . . Reinforcement 3 | . 1 2 Assault . | . . . Garrison . | . . . Intercept . | . . . Construction Impeded . | . . . Haulers Reinforced . | . . . Active Scanning Responses . | . . . Cargo Convoy Interrupts . | . . . Stealth | -11 -10 -9 --------- Run | Scr Mat Mat Distress Signals 2 | . 1 1 Communications Jammed . | . . . Distress Signals . | . . . Times Spotted 25 | . 8 17 Peak Tracking Total 10 | . 7 10 Tactical Retreats . | . . . Traps | -11 -10 -9 ------- Run | Scr Mat Mat Traps Triggered . | . . . Indirectly . | . . . Trap Hack Attempts . | . . . Triggered . | . . . Disarmed . | . . . Reprogrammed . | . . . Reused . | . . . Traps Extracted . | . . . Installed . | . . . Triggered . | . . . Machines | -11 -10 -9 ---------- Run | Scr Mat Mat Machines Disabled 2 | . . 2 Max in Single Turn 2 | . . 2 Machines Sabotaged . | . . . Garrisons Compromised . | . . . Overloaded Fab Kills . | . . . Fab Network Shutdowns . | . . . Hacking | -11 -10 -9 --------- Run | Scr Mat Mat Machines Accessed 1 | . 1 . Terminals . | . . . Fabricators . | . . . Repair Stations . | . . . Recycling Units 1 | . 1 . Scanalyzers . | . . . Garrison Access . | . . . Total Hacks 1 | . 1 . Successful 1 | . 1 . Failed . | . . . Catastrophic . | . . . Database Lockouts . | . . . Manual 1 | . 1 . Terminals . | . . . Fabricators . | . . . Repair Stations . | . . . Recycling Units 1 | . 1 . Scanalyzers . | . . . Garrison Access . | . . . Terminal Hacks . | . . . Fabricator Hacks . | . . . Repair Station Hacks . | . . . Recycling Unit Hacks . | . . . Scanalyzer . | . . . Garrison Access Hacks . | . . . Unauthorized Hacks 1 | . 1 . Terminals . | . . . Fabricators . | . . . Repair Stations . | . . . Recycling Units 1 | . 1 . Tunnel 1 | . 1 . Scanalyzers . | . . . Garrison Access . | . . . Data Cores Recovered . | . . . Used . | . . . Hacking Detections . | . . . Full Trace Events . | . . . Feedback Events . | . . . Feedback Blocked . | . . . Robot Schematics Acquired . | . . . Robots Built . | . . . Matter . | . . . Time . | . . . Total Robot Build Rating . | . . . Part Schematics Acquired . | . . . Parts Built . | . . . Matter . | . . . Time . | . . . Total Part Build Rating . | . . . Parts Repaired . | . . . Time . | . . . Parts Recycled . | . . . Recycled Matter . | . . . Retrieved Matter . | . . . Retrieved Components . | . . . Parts Scanalyzed . | . . . Part Schematics Acquired . | . . . Parts Damaged . | . . . Bothacking | -11 -10 -9 ------------ Run | Scr Mat Mat Used RIF Installer . | . . . Robots Hacked . | . . . Non-combat . | . . . Combat . | . . . Robot Hacks Applied . | . . . Relay Couplers Released . | . . . Robots Rewired . | . . . Allies Hacked . | . . . Hacks Repelled . | . . . Allies | -11 -10 -9 -------- Run | Scr Mat Mat Total Allies . | . . . Largest Group . | . . . Highest-Rated Group . | . . . Highest-Rated Ally . | . . . Total Orders . | . . . Ally Attacks . | . . . Total Damage . | . . . Kills . | . . . Allies Corrupted . | . . . Allies Melted . | . . . Intel | -11 -10 -9 ------- Run | Scr Mat Mat Robot Analysis Total . | . . . Derelict Logs Recovered . | . . . Drone Launches . | . . . Drone Recoveries . | . . . Exploration | -11 -10 -9 ------------- Run | Scr Mat Mat Turns Passed 139 | 6 42 91 Spaces Moved 247 | 3 79 165 Core 157 | 3 79 75 Treads . | . . . Legs . | . . . Wheels . | . . . Hover . | . . . Flight 90 | . . 90 Fastest Speed 31 | 50 50 31 Average Speed 43 | 50 50 39 Slowest Speed 50 | 50 50 50 Overloaded Moves . | . . . Propulsion Burnouts . | . . . Robots Hopped 3 | . . 3 Cave-ins Triggered . | . . . Exploration Rate (%) 17 | 2 25 26 Regions Visited 2 Branch Regions . Pre-discovered Areas 1 | . 1 . Known Exits Taken . | . . . Unknown Exits Taken 2 | 1 1 . Scrap Searched . | . . . Spaces Dug . | . . . Terrain Destroyed 16 | . . 16 Melee . | . . . Projectile . | . . . AOE 16 | . . 16 Terrain Rammed . | . . . Walls Destroyed . | . . . Machines Disabled . | . . . Actions | -11 -10 -9 --------- Run | Scr Mat Mat Total 270 | 7 80 183 Wait 1 | . 1 . Move 240 | 2 78 160 Hop 2 | . . 2 Pick Up 4 | . 1 3 Fast Attach 4 | 1 . 3 Attach 7 | 2 . 5 Detach 3 | . . 3 Swap . | . . . Drop 4 | 2 . 2 Fire 5 | . . 5 Melee . | . . . Ram . | . . . Kick . | . . . Crush . | . . . Escape Stasis . | . . . Rewire . | . . . Trap . | . . . Miscellaneous . | . . . Route ------- -11/Scrapyard -10/Materials -9/Materials (discovered 1 exit: [*Min]) History --------- Turn | Location | Event 1 | -11/Scrapyard | Released all parts (6) 4 | -11/Scrapyard | Discovered new exit (range 3) 7 | -11/Scrapyard | Entered Materials 42 | -10/Materials | Discovered new exit (range 15) 49 | -10/Materials | Entered another Materials area 49 | -9/Materials | Evolved 2 slots: Propulsion x2 107 | -9/Materials | Discovered new exit (range 9) 140 | -9/Materials | Self-destructed Last Messages --------------- M006. 00079_ Material Compactor disabled. 00079_ S-10 Pest destroyed. 00079_ Material Compactor disabled. 00084_ Acquired Flight Unit. 00088_ Acquired 8 matter. 00090_ Acquired Lgt. Ion Engine. 00091_ U-05 Engineer lays Concrete. 00104_ S-10 Pest destroyed. 00107_ Acquired 3 matter. 00107_ EXIT=FOUND 00108_ The unstable cave ceiling collapses. 00108_ Dropped Lgt. Treads. 00108_ Acquired Flight Unit. 00109_ Dropped Lgt. Treads. 00113_ Electrolysis Chamber disabled. 00120_ ALERT: Hostiles spotted, dispatching reinforcements to Terminal M007. 00132_ K-01 Serf collects debris. 00138_ Lgt. Assault Rifle destroyed. Map ----- +----------------------------------------------------+ | | | ????##########???????????????????????????????????? | | ????# #??????????????????????????????????? | | ????# ! #??????????????????????????????????? | | ????# #??????????????????????????????????? | | ????# """ """ #??????????????????????????????????? | | ????# """ """ #??????????????????????????????????? | | ????# """ """ #?????########?????????????????????? | | ????# #?????# #?????????????????????? | | ????# ####### #?????????????????????? | | ????######+#+## # #?????????????????????? | | ????# # # #?????????????????????? | | ##### ! + + #?????????????????????? | | ! # # # #?????????????????????? | | # !###### ###############??????????????? | | """ #[ ??????### ###??????# ???????????????? | | """ ####????????# #????????# """" #??????????????? | | """ #???????????# ########## """" #??????????????? | | #???????????# + """" #??????????????? | | #####???????????# # #??????????????? | | =#???????????# # #??????????????? | | #???????????# ########??????????????? | | "" #???????????# ##+##+##+##????????????????????? | | """ +???????????# # #????????????????????? | | S" # ??????????# # #????????????????????? | | # #?????????# # @ #????????????????????? | | ##### #?????????# # #????????????????????? | | ????# #??###+#### ###########????????????????????? | | ##??# #### ## #??????????????????????????????? | | "#??# ## ### #??????????????????????? | | "#### #??????????????????????? | | ###### #??????????????????????? | | ##### #?????????????????????????????????? | | " #???## ##?????????????????????????????????? | | "" #????# #??????????????????????????????????? | | "" #????+ #??????????????????????????????????? | | "" #????# #?######???????????????????????????? | | " #????# ## #???????????????????????????? | | % ##????# # ??????????????????????? | | ! #?????# / """???????????????????????? | | #??#### # """???????????????????????? | | #### # ### #???????????????????????????? | | "" # """"" #?# ##???????????????????????????? | | "" # ""T"" #?? #????????????????????????????? | | " # #??? #????????????????????????????? | | # = ##???? #????????????????????????????? | | / = #### #????????????????????????????? | | # ! "" """ #???????????????????????????? | | +#### """ #" #???????????????????????????? | | ?# """ #"! #???????????????????????????? | +----------------------------------------------------+ Best States ------------- Heat Dissipation 28 Energy Generation 10 Energy Capacity 125 Matter Stores 270 Matter Capacity 300 Sight Range 16 Terrain Scan Density 10 Evasion (%) 63 Recoil Reduction 2 Item Schematics ----------------- None Robot Schematics ------------------ None Fabricated ------------ Nothing Alien Tech Used ----------------- None Achievements -------------- None Challenges ------------ None Game ------ Seed SniperBackupDisintegrator Manual? 0 Play Time 00:03:38 Cumulative 469.3 hours Start 2021.09.03 @ 19:56:23 End 2021.09.03 @ 19:58:31 Sessions 1 Manual Loads 0 Difficulty Rogue Special Mode None Game No. 174 Rogue 173 Adventurer 1 Explorer 0 Win Type - Total 36 Types 9/5/6/1/1/0/13/1/0 Lore% 94 Gallery% 95 Achievement% 82 Wizard Run 0 Options --------- ASCII 1 Keyboard 1 Movement Numpad Keybinds 0 Fullscreen 0 Font 18/Smallcaps Map View 76x50 Tactical HUD 1 Map Filters NONE Filters NONE Steam 1 RUN: a679fb7c-d999-4e21-a169-5f11dc124666